fUST/lending_fUST_20251024
["ID","MTS","AMOUNT","RATE_DAILY","PERIOD"]
[392285221,1761309032691,-500.0,0.00018593,2]
[392285222,1761309032701,-500.0,0.00018593,2]
[392285223,1761309032711,-500.0,0.00018593,2]
[392285224,1761309032721,-500.0,0.00018593,2]
[392285225,1761309032731,-500.0,0.00018593,2]
[392285226,1761309032741,-520.47508288,0.00018593,2]
[392285227,1761309032751,-500.0,0.00018593,2]
[392285228,1761309032760,-500.0,0.00018593,2]
[392285229,1761309032776,-500.0,0.00018593,2]
[392285230,1761309032786,-500.0,0.00018593,2]
[392285231,1761309032797,-500.0,0.00018593,2]
[392285232,1761309032807,-402.07620293,0.00018593,2]
[392285233,1761309032817,-500.0,0.00018593,2]
[392285234,1761309032826,-500.0,0.00018593,2]
[392285235,1761309032836,-500.0,0.00018593,2]
[392285236,1761309032846,-500.0,0.00018593,2]
[392285237,1761309032856,-500.0,0.00018593,2]
[392285238,1761309032866,-500.0,0.00018593,2]
[392285239,1761309032880,-500.0,0.00018593,2]
[392285240,1761309032891,-500.0,0.00018593,2]
[392285241,1761309032901,-500.0,0.00018593,2]
[392285242,1761309032911,-500.0,0.00018593,2]
[392285243,1761309032921,-500.0,0.00018593,2]
[392285244,1761309032931,-500.0,0.00018593,2]
[392285245,1761309032941,-500.0,0.00018593,2]
[392285246,1761309032950,-500.0,0.00018593,2]
[392285247,1761309032960,-500.0,0.00018593,2]
[392285248,1761309032971,-500.0,0.00018593,2]
[392285249,1761309032981,-500.0,0.00018593,2]
[392285250,1761309032991,-500.0,0.00018593,2]
[392285251,1761309033002,-500.0,0.00018593,2]
[392285252,1761309033017,-500.0,0.00018593,2]
[392285253,1761309033027,-500.0,0.00018593,2]
[392285254,1761309033036,-500.0,0.00018593,2]
[392285255,1761309033046,-371.04888651,0.00018593,2]
[392285256,1761309033056,-500.0,0.00018593,2]
[392285257,1761309033067,-500.0,0.00018593,2]
[392285258,1761309033076,-500.0,0.00018593,2]
[392285259,1761309033087,-500.0,0.00018593,2]
[392285260,1761309033097,-500.0,0.00018593,2]
[392285261,1761309033106,-500.0,0.00018593,2]
[392285262,1761309033116,-500.0,0.00018593,2]
[392285263,1761309033125,-500.0,0.00018593,2]
[392285264,1761309033136,-500.0,0.00018593,2]
[392285265,1761309033146,-500.0,0.00018593,2]
[392285266,1761309033156,-500.0,0.00018593,2]
[392285267,1761309033165,-635.16470111,0.00018593,2]
[392285268,1761309033178,-500.0,0.00018593,2]
[392285269,1761309033188,-500.0,0.00018593,2]
[392285270,1761309033198,-500.0,0.00018593,2]
[392285271,1761309033207,-500.0,0.00018593,2]
[392285272,1761309033216,-500.0,0.00018593,2]
[392285273,1761309033227,-500.0,0.00018593,2]
[392285274,1761309033236,-500.0,0.00018593,2]
[392285275,1761309033247,-500.0,0.00018593,2]
[392285276,1761309033257,-500.0,0.00018593,2]
[392285277,1761309033274,-500.0,0.00018593,2]
[392285278,1761309033287,-170.1701174,0.00018593,2]
[392285279,1761309033298,-500.0,0.00018593,2]
[392285280,1761309033308,-500.0,0.00018593,2]
[392285281,1761309033317,-500.0,0.00018593,2]
[392285282,1761309033326,-500.0,0.00018593,2]
[392285283,1761309033335,-200.0,0.00018593,2]
[392285284,1761309033344,-500.0,0.00018593,2]
[392285285,1761309033353,-500.0,0.00018595,2]
[392285286,1761309033362,-388.68890645,0.00018595,2]
[392285287,1761309033371,-572.14356733,0.00018595,2]
[392285288,1761309033380,-60081.91372887,0.00018596,2]
[392285289,1761309033401,-898.62159206,0.00018596,2]
[392285296,1761309039686,5000.0,0.000201,9]
[392285348,1761309040613,-0.00127655,0.00018573,2]
[392285876,1761309046376,-499.99872345,0.00018573,2]
[392285878,1761309046385,-500.0,0.00018573,2]
[392285880,1761309046395,-255.26094634,0.00018592,2]
[392285882,1761309046405,-500.0,0.00018593,2]
[392285884,1761309046415,-185.80127872,0.00018593,2]
[392285886,1761309046424,-160833.80947703,0.00018596,2]
[392287120,1761309069274,-1389.99479004,0.00016819,2]
[392287121,1761309069312,-300.0,0.00016988,2]
[392287122,1761309069343,-389.99479004,0.00016989,2]
[392287123,1761309069376,-500.0,0.00016989,2]
[392287124,1761309069412,-500.0,0.00016989,2]
[392287125,1761309069445,-475.35655283,0.00016989,2]
[392287126,1761309069478,-500.0,0.00016989,2]
[392287127,1761309069511,-161.7414635,0.00016989,2]
[392287128,1761309069751,-158.46728223,0.00016989,2]
[392287129,1761309071132,1248.90024272,0.00016651,2]
[392287130,1761309071156,141.09454732,0.00016651,2]
[392287131,1761309076992,500.0,0.00016989,2]
[392287132,1761309077022,500.0,0.00016989,2]
[392287133,1761309077055,500.0,0.00016989,2]
[392287134,1761309084593,192.94921806,0.00016989,2]
[392287135,1761309084624,500.0,0.00016989,2]
[392287136,1761309084657,-420.0,0.00018555,2]
[392287137,1761309084688,500.0,0.00016989,2]
[392287138,1761309084732,300.0,0.00016989,2]
[392287139,1761309084763,500.0,0.00016989,2]
[392287140,1761309084809,172.21568272,0.00016989,2]
[392287141,1761309084870,500.0,0.00016989,2]
[392287142,1761309086333,500.0,0.00018573,2]
[392287143,1761309087223,5000.0,0.00018596,2]
[392287144,1761309090188,500.0,0.00018573,2]
[392287145,1761309092641,200.5914091,0.00016989,2]
[392287146,1761309092715,500.0,0.00016989,2]
[392287147,1761309092881,487.20290818,0.00016989,2]
[392287148,1761309092906,12.79709182,0.00016989,2]
[392287149,1761309092939,500.0,0.00016989,2]
[392287150,1761309092979,500.0,0.00016989,2]
[392287151,1761309093032,231.69384791,0.00016989,2]
[392287152,1761309093204,500.0,0.00018573,2]
[392287153,1761309095382,1049.51987874,0.00018596,2]
[392287154,1761309096591,500.0,0.00018573,2]
[392287155,1761309096619,422.29164119,0.000169,2]
[392287156,1761309101835,500.0,0.00018573,2]
[392287157,1761309104426,500.0,0.00016989,2]
[392287158,1761309104464,500.0,0.00016989,2]
[392287159,1761309104498,500.0,0.00016989,2]
[392287160,1761309104532,402.21514226,0.00016989,2]
[392287161,1761309104565,500.0,0.00016989,2]
[392287162,1761309104598,500.0,0.00016989,2]
[392287163,1761309104653,500.0,0.00016989,2]
[392287164,1761309104696,500.0,0.00016989,2]
[392287165,1761309104812,500.0,0.00016989,2]
[392287166,1761309111463,1381.49239808,0.00018596,2]
[392287167,1761309111487,2937.24721797,0.00018596,2]
[392287168,1761309123347,300.0,0.00018595,2]
[392287169,1761309123670,500.0,0.00016989,2]
[392287170,1761309124078,500.0,0.00016989,2]
[392287171,1761309124304,5762.76278203,0.00017754,2]
[392287172,1761309124326,10000.01,0.00017754,2]
[392287173,1761309124354,5479.84070137,0.00017754,2]
[392287174,1761309124621,500.0,0.00016989,2]
[392287175,1761309125006,500.0,0.00016989,2]
[392287176,1761309125354,500.0,0.00016989,2]
[392287177,1761309125807,500.0,0.00016989,2]
[392287178,1761309126177,500.0,0.00016989,2]
[392287179,1761309126547,500.0,0.00016989,2]
[392287180,1761309126895,500.0,0.00016989,2]
[392287181,1761309127242,500.0,0.00016989,2]
[392287182,1761309132926,500.0,0.00016989,2]
[392287183,1761309165124,-523.28137915,0.00018593,2]
[392287184,1761309175118,605.40797147,0.00018548,2]
[392287185,1761309178604,1000.0,0.00018,2]
[392287186,1761309183316,300.0,0.00018595,2]
[392287187,1761309193495,1999.0,0.00030136,120]
[392287188,1761309199134,224.49723143,0.00018595,2]
[392287189,1761309201129,500.0,0.00018595,2]
[392287190,1761309201156,500.0,0.00018595,2]
[392287191,1761309201193,500.0,0.00018595,2]
[392287192,1761309201221,170.06793804,0.00018595,2]
[392287193,1761309201249,500.0,0.00018595,2]
[392287194,1761309201297,500.0,0.00018595,2]
[392287195,1761309201351,500.0,0.00018595,2]
[392287196,1761309201415,500.0,0.00018595,2]
[392287197,1761309209959,954.3318175,0.00018036,2]
[392287198,1761309213842,500.0,0.00018595,2]
[392287199,1761309213878,500.0,0.00018595,2]
[392287200,1761309213920,500.0,0.00018595,2]
[392287201,1761309214097,500.0,0.00018595,2]
[392287202,1761309214259,199.14228326,0.00018595,2]
[392287203,1761309214283,300.85771674,0.00018595,2]
[392287204,1761309214320,619.07084709,0.00018595,2]
[392287205,1761309218512,319.23739808,0.00018595,2]
[392287206,1761309219087,330.6878991,0.00018595,2]
[392287207,1761309223312,500.0,0.00018595,2]
[392287208,1761309223346,258.5264086,0.00018595,2]
[392287209,1761309223378,500.0,0.00018595,2]
[392287210,1761309223409,500.0,0.00018595,2]
[392287211,1761309223439,500.0,0.00018595,2]
[392287212,1761309223474,500.0,0.00018595,2]
[392287213,1761309242250,163.21674625,0.00018548,2]
[392287214,1761309242390,187.50452503,0.00018595,2]
[392287215,1761309243619,300.0,0.00018595,2]
[392287216,1761309271869,223.46617865,0.00018595,2]
[392287217,1761309273949,407.78532645,0.00018595,2]
[392287218,1761309273987,346.56342746,0.00018595,2]
[392287219,1761309274223,306.50293429,0.00018595,2]
[392287220,1761309304193,1200.0,0.00018595,2]
[392287221,1761309305192,300.0,0.00018595,2]
[392287222,1761309363619,300.0,0.00018595,2]
[392287223,1761309372452,502.0,0.00018595,2]
[392287224,1761309379659,150.0,0.00012951,30]
[392287225,1761309379996,150.0,0.00013267,30]
[392287226,1761309380427,150.0,0.00013583,30]
[392287227,1761309380925,150.0,0.00013898,30]
[392287228,1761309381365,150.0,0.00014214,30]
[392287229,1761309381852,150.0,0.0001453,30]
[392287230,1761309382281,154.75,0.00014846,30]
[392287231,1761309423473,300.0,0.00018595,2]
[392287232,1761309423617,5000.0,0.00018596,2]
[392287233,1761309446071,3898.01,0.00018596,2]
[392287234,1761309446097,1101.99,0.00018596,2]
[392287235,1761309454782,150.0,0.00012297,30]
[392287236,1761309455254,150.0,0.00012597,30]
[392287237,1761309455711,150.0,0.00012897,30]
[392287238,1761309456169,160.67,0.00013197,30]
[392287239,1761309456213,205.29110602,0.00018595,2]
[392287240,1761309456353,500.0,0.00018595,2]
[392287241,1761309457055,500.0,0.00018595,2]
[392287242,1761309457089,1999.0,0.00030136,120]
[392287243,1761309457115,193.72710177,0.00018595,2]
[392287244,1761309457149,200.84,0.00013497,30]
[392287245,1761309457178,500.0,0.00018595,2]
[392287246,1761309457574,241.01,0.00013797,30]
[392287247,1761309457990,1200.0,0.00018595,2]
[392287248,1761309458088,281.18,0.00014097,30]
[392287249,1761309458558,201.94830884,0.00014397,30]
[392287250,1761309458587,119.40169116,0.00014397,30]
[392287251,1761309458789,305.47051893,0.00018595,2]
[392287252,1761309459029,361.51,0.00014697,30]
[392287253,1761309466466,151.0,0.000173,2]
[392287254,1761309466889,151.0,0.000164,2]
[392287255,1761309467251,151.0,0.000155,2]
[392287256,1761309467538,151.0,0.000146,2]
[392287257,1761309467948,151.0,0.000137,2]
[392287258,1761309468311,151.0,0.000128,2]
[392287259,1761309480487,305.12,0.00015095,2]
[392287260,1761309480992,305.12,0.00015095,2]
[392287261,1761309487851,-151.0,0.000182,2]
[392287262,1761309487880,-2814.54237528,0.0001841,2]
[392287263,1761309487909,-269.65,0.00018586,3]
[392287264,1761309487939,-300.0,0.00018595,2]
[392287265,1761309490173,808.97,0.00018586,3]
[392287266,1761309516580,2120.65524944,0.00018522,2]
[392287267,1761309516601,421.11661297,0.00018522,2]
[392287268,1761309523664,444.4241551,0.0001784,2]
[392287269,1761309532450,150.0,0.00012304,30]
[392287270,1761309532891,150.0,0.00012604,30]
[392287271,1761309533318,150.0,0.00012904,30]
[392287272,1761309533753,150.0,0.00013204,30]
[392287273,1761309534242,150.0,0.00013504,30]
[392287274,1761309534939,175.01,0.00013805,30]
[392287275,1761309535307,204.18,0.00014105,30]
[392287276,1761309535752,233.35,0.00014405,30]
[392287277,1761309544702,300.0,0.00018595,2]
[392287278,1761309584988,498.05839505,0.00030137,120]
[392287279,1761309599626,272.53726458,0.00018,14]
[392287280,1761309602788,300.0,0.00018595,2]
[392287282,1761309603589,300.0,0.00018595,2]
[392287283,1761309603703,300.0,0.00018595,2]
[392287284,1761309604277,300.0,0.00018595,2]
[392287285,1761309604504,1200.0,0.00018595,2]
[392287286,1761309605107,300.0,0.00018595,2]
[392287287,1761309610789,150.0,0.00012398,30]
[392287288,1761309611289,150.0,0.000127,30]
[392287289,1761309611726,150.0,0.00013002,30]
[392287290,1761309612161,150.0,0.00013305,30]
[392287291,1761309612625,150.0,0.00013607,30]
[392287292,1761309613124,150.0,0.0001391,30]
[392287293,1761309630743,211.0744693,0.00017996,2]
[392287294,1761309641739,174.90154601,0.00018595,2]
[392287295,1761309642012,500.0,0.00018595,2]
[392287296,1761309642044,500.0,0.00018595,2]
[392287297,1761309642290,187.44676399,0.00018595,2]
[392287298,1761309642319,212.11774689,0.00018595,2]
[392287299,1761309642354,549.96923812,0.00018595,2]
[392287300,1761309663679,300.0,0.00018595,2]
[392287301,1761309684880,150.0,0.00012668,30]
[392287302,1761309685352,150.0,0.00012977,30]
[392287303,1761309685785,150.0,0.00013285,30]
[392287304,1761309686250,150.0,0.00013594,30]
[392287305,1761309725613,300.0,0.00018595,2]
[392287306,1761309756665,150.0,0.00012624,30]
[392287307,1761309757081,150.0,0.00012932,30]
[392287308,1761309757501,150.0,0.0001324,30]
[392287309,1761309785125,300.0,0.00018595,2]
[392287310,1761309828250,150.0,0.00012867,30]
[392287311,1761309841590,500.0,0.00018095,2]
[392287312,1761309844434,500.0,0.00018593,2]
[392287313,1761309844663,363.65156736,0.00018593,2]
[392287314,1761309846843,500.0,0.0001719,2]
[392287315,1761309848081,300.0,0.00018595,2]
[392287316,1761309851815,500.0,0.00016331,2]
[392287317,1761309857112,235.30790026,0.00015514,2]
[392287318,1761309857137,264.69209974,0.00015514,2]
[392287319,1761309858000,2033.41748996,0.00018509,2]
[392287320,1761309877559,500.0,0.00018593,2]
[392287321,1761309878040,500.0,0.00018593,2]
[392287322,1761309878139,500.0,0.00018593,2]
[392287323,1761309878327,500.0,0.00018593,2]
[392287324,1761309878557,500.0,0.00018595,2]
[392287325,1761309878815,500.0,0.00018595,2]
[392287326,1761309879051,500.0,0.00018595,2]
[392287327,1761309879351,500.0,0.00018595,2]
[392287328,1761309879585,250.07896076,0.00018595,2]
[392287329,1761309893251,3451.82144954,0.00018496,2]
[392287330,1761309893275,10000.01,0.00018496,2]
[392287331,1761309893298,10000.01,0.00018496,2]
[392287332,1761309893322,10000.01,0.00018496,2]
[392287333,1761309893345,10000.01,0.00018496,2]
[392287334,1761309893368,10000.01,0.00018496,2]
[392287335,1761309893392,10000.01,0.00018496,2]
[392287336,1761309893415,10000.01,0.00018496,2]
[392287337,1761309893438,10000.01,0.00018496,2]
[392287338,1761309893462,10000.01,0.00018496,2]
[392287339,1761309897736,150.0,0.00013025,30]
[392287340,1761309904689,10000.0,0.000201,10]
[392287341,1761309904800,300.0,0.00018495,2]
[392287342,1761309905465,551.0,0.00018495,2]
[392287343,1761309936638,1999.0,0.00030136,120]
[392287344,1761309941482,485.04,0.00018486,3]
[392287345,1761309952143,242.52,0.00018486,3]
[392287346,1761309963283,727.58,0.00018486,3]
[392287347,1761309965628,300.0,0.00018495,2]
[392287348,1761309993560,348.61208295,0.00018495,2]
[392287349,1761309993633,223.10559771,0.00018495,2]
[392287350,1761310014998,666.0,0.0001784,2]
[392287353,1761310024006,300.0,0.00018495,2]
[392287354,1761310042066,500.0,0.00018973,9]
[392287355,1761310088695,300.0,0.00018495,2]
[392287356,1761310144682,300.0,0.00018495,2]
[392287357,1761310160244,1999.0,0.00030136,120]
[392287359,1761310199697,1626.73399196,0.00018452,2]
[392287360,1761310205400,300.0,0.00018495,2]
[392287606,1761310235135,151.0,0.00018496,2]
[392287607,1761310236097,-560.16633354,0.00018496,2]
[392287608,1761310236108,-351.49724853,0.00018496,2]
[392287632,1761310238129,-4300.04038752,0.00018496,2]
[392287633,1761310238141,-5996.17995797,0.00018496,2]
[392287634,1761310238153,-12275.2,0.00018496,2]
[392287635,1761310238185,-306.017431,0.00018496,2]
[392287708,1761310246400,-109909.85670395,0.00018496,2]
[392287712,1761310252461,3178.41832738,0.00018494,2]
[392287713,1761310252482,10000.01,0.00018494,2]
[392287714,1761310252503,10000.01,0.00018494,2]
[392287715,1761310252525,10000.01,0.00018494,2]
[392287716,1761310252547,10000.01,0.00018494,2]
[392287717,1761310252568,10000.01,0.00018494,2]
[392287718,1761310252588,10000.01,0.00018494,2]
[392287719,1761310252609,10000.01,0.00018494,2]
[392287720,1761310252631,10000.01,0.00018494,2]
[392287721,1761310252652,10000.01,0.00018494,2]
[392287722,1761310263468,-3030.98670152,0.00018494,2]
[392287723,1761310265337,-300.0,0.00018493,2]
[392287724,1761310265374,-9400.01,0.00018494,2]
[392287725,1761310265495,-10000.01,0.00018494,2]
[392287726,1761310265629,-10000.01,0.00018494,2]
[392287727,1761310265864,-10000.01,0.00018494,2]
[392287728,1761310265992,-10000.01,0.00018494,2]
[392287729,1761310266115,-10000.01,0.00018494,2]
[392287730,1761310266240,-10000.01,0.00018494,2]
[392287731,1761310266467,-10000.01,0.00018494,2]
[392287732,1761310266535,-10000.01,0.00018494,2]
[392287733,1761310266788,-10000.01,0.00018494,2]
[392287734,1761310277444,-4797.93579105,0.00018424,2]
[392287735,1761310277469,-404.1384179,0.00018424,2]
[392287736,1761310277552,-10000.01,0.00018494,2]
[392287737,1761310277685,-10000.01,0.00018494,2]
[392287738,1761310277816,-10000.01,0.00018494,2]
[392287739,1761310277945,-10000.01,0.00018494,2]
[392287740,1761310278301,-10000.01,0.00018494,2]
[392287741,1761310278430,-10000.01,0.00018494,2]
[392287742,1761310278542,-10000.01,0.00018494,2]
[392287743,1761310278692,-10000.01,0.00018494,2]
[392287744,1761310278827,-10000.01,0.00018494,2]
[392287745,1761310283637,-2045.47510584,0.00018309,2]
[392287746,1761310283665,-5909.05978832,0.00018309,2]
[392287747,1761310283766,-10000.01,0.00018494,2]
[392287748,1761310283893,-10000.01,0.00018494,2]
[392287749,1761310284008,-10000.01,0.00018494,2]
[392287750,1761310284158,-10000.01,0.00018494,2]
[392287751,1761310284295,-10000.01,0.00018494,2]
[392287752,1761310284449,-10000.01,0.00018494,2]
[392287753,1761310284565,-10000.01,0.00018494,2]
[392287754,1761310284670,-10000.01,0.00018494,2]
[392287755,1761310284776,-10000.01,0.00018494,2]
[392287756,1761310289665,-2987.44164491,0.00018309,2]
[392287757,1761310289695,-4025.12671018,0.00018309,2]
[392287758,1761310289770,-10000.01,0.00018494,2]
[392287759,1761310289909,-10000.01,0.00018494,2]
[392287760,1761310290038,-757.07182076,0.00018494,2]
[392287761,1761310290064,-8485.86635848,0.00018494,2]
[392287762,1761310290147,-630.71222643,0.00018494,2]
[392287763,1761310311712,500.0,0.00018495,2]
[392287764,1761310311741,212.48463544,0.00018495,2]
[392287765,1761310311771,500.0,0.00018495,2]
[392287766,1761310311805,500.0,0.00018495,2]
[392287767,1761310311836,355.78362851,0.00018495,2]
[392287768,1761310311864,500.0,0.00018495,2]
[392287769,1761310311906,500.0,0.00018495,2]
[392287770,1761310311935,300.0,0.00018495,2]
[392287771,1761310323428,300.0,0.00018495,2]
[392287772,1761310336868,500.0,0.00018495,2]
[392287773,1761310336898,500.0,0.00018495,2]
[392287774,1761310337681,295.31850487,0.000184,2]
[392287775,1761310339010,500.0,0.00018495,2]
[392287776,1761310339803,500.0,0.00018495,2]
[392287777,1761310341039,500.0,0.00018495,2]
[392287778,1761310341689,500.0,0.00018495,2]
[392287779,1761310342334,500.0,0.00018495,2]
[392287780,1761310344187,500.0,0.00018495,2]
[392287781,1761310344256,500.0,0.00018495,2]
[392287782,1761310344300,274.99877832,0.00018495,2]
[392287783,1761310344326,225.00122168,0.00018495,2]
[392287784,1761310344362,200.0,0.00018495,2]
[392287785,1761310350932,170.323157,0.00017883,2]
[392287786,1761310351139,170.323157,0.00017883,120]
[392287787,1761310353096,500.0,0.00018495,2]
[392287788,1761310353306,152.62125462,0.00018495,2]
[392287789,1761310355483,408.25374538,0.00018495,2]
[392287790,1761310361323,500.0,0.00018495,2]
[392287791,1761310361374,500.0,0.00018495,2]
[392287792,1761310361432,500.0,0.00018495,2]
[392287793,1761310361484,500.0,0.00018495,2]
[392287794,1761310361539,168.98506373,0.00018495,2]
[392287795,1761310364455,1200.0,0.00018495,2]
[392287796,1761310369305,205.64574969,0.00018396,2]
[392287797,1761310384204,300.0,0.00018495,2]
[392287798,1761310401912,154.96770746,0.000184,2]
[392287799,1761310408002,1999.0,0.00030136,120]
[392287800,1761310417060,300.0,0.000184,2]
[392287801,1761310430217,300.0,0.000184,2]
[392287802,1761310443217,300.0,0.000184,2]
[392287803,1761310443985,163.5202249,0.00017606,2]
[392287804,1761310445869,300.0,0.00018495,2]
[392287805,1761310501487,300.0,0.00018495,2]
[392287806,1761310503091,300.0,0.00018495,2]
[392287807,1761310503635,300.0,0.00018495,2]
[392287808,1761310504087,300.0,0.00018495,2]
[392287809,1761310505319,1750.69187554,0.00017741,2]
[392287810,1761310505343,2324.31031316,0.00017741,2]
[392287811,1761310505682,300.0,0.00018495,2]
[392287812,1761310506242,1200.0,0.00018495,2]
[392287818,1761310539962,1489.83957516,0.000184,2]
[392287819,1761310555333,1921.24050534,0.00018496,2]
[392287820,1761310564734,300.0,0.00018495,2]
[392287821,1761310618981,2464.61960634,0.00017741,2]
[392287822,1761310619005,1394.25354636,0.00017741,2]
[392287824,1761310621039,314.66,0.00030137,120]
[392287825,1761310623467,300.0,0.00018495,2]
[392287826,1761310650284,1999.0,0.00030136,120]
[392287827,1761310684957,300.0,0.00018495,2]
[392287828,1761310744553,300.0,0.00018495,2]
[392287841,1761310788427,533.51964754,0.00030136,120]
[392287842,1761310803141,300.0,0.00018495,2]
[392287843,1761310805143,1200.0,0.00018495,2]
[392287844,1761310810798,178.58,0.00018486,2]
[392287845,1761310816660,221.88543242,0.00018496,2]
[392287850,1761310838043,174.35744522,0.00018396,2]
[392287851,1761310868349,300.0,0.00018495,2]
[392287853,1761310871280,533.36,0.00030136,120]
[392287854,1761310879809,1999.0,0.00030136,120]
[392287855,1761310881348,1342.63356544,0.00018396,2]
[392287857,1761310925708,300.0,0.00018495,2]
[392287858,1761310984109,300.0,0.00018495,2]
[392287859,1761310988802,150.0,0.00018145,7]
[392287860,1761310992851,533.36,0.00030136,120]
[392287861,1761310993875,172.7863316,0.00017569,2]
[392287862,1761311003965,3065.51367896,0.00017739,2]
[392287863,1761311003989,4218.43201454,0.00017739,2]
[392287864,1761311004998,533.36,0.00030136,120]
[392287865,1761311014831,500.0,0.00018495,2]
[392287866,1761311014895,569.24905567,0.00018495,2]
[392287867,1761311015062,500.0,0.00018495,2]
[392287868,1761311017214,207.93505658,0.00018495,2]
[392287869,1761311017275,164.00904613,0.00018495,2]
[392287870,1761311027383,281.70125128,0.00018495,2]
[392287871,1761311027575,170.23657056,0.00018495,2]
[392287872,1761311027900,161.75915953,0.00018396,2]
[392287875,1761311032628,242.7759694,0.00018495,2]
[392287876,1761311032689,500.0,0.00018495,2]
[392287877,1761311045885,300.0,0.00018495,2]
[392287878,1761311103402,300.0,0.00018495,2]
[392287879,1761311103900,300.0,0.00018495,2]
[392287880,1761311104062,300.0,0.00018495,2]
[392287881,1761311104676,300.0,0.00018495,2]
[392287882,1761311106355,983.91187631,0.00018495,2]
[392287883,1761311106380,216.08812369,0.00018495,2]
[392287884,1761311118485,1999.0,0.00030136,120]
[392287885,1761311118868,221.88543242,0.00018496,2]
[392287886,1761311122592,151.0,0.00018496,2]
[392287887,1761311123342,151.0,0.00018496,2]
[392287888,1761311124255,151.0,0.00018496,2]
[392287889,1761311124883,151.0,0.00018496,2]
[392287890,1761311125695,175.13092885,0.00018496,2]
[392287891,1761311128960,151.0,0.00018496,2]
[392287892,1761311132974,-9893.3299679,0.00018496,2]
[392287893,1761311164032,300.0,0.00018495,2]
[392287894,1761311172482,255.73773143,0.00018495,2]
[392287895,1761311172512,163.81782224,0.00018495,2]
[392287896,1761311173070,161.92942056,0.00018495,2]
[392287897,1761311173101,500.0,0.00018495,2]
[392287898,1761311173129,500.0,0.00018495,2]
[392287899,1761311173163,485.85668638,0.00018495,2]
[392287900,1761311173535,607.76835585,0.00018495,2]
[392287901,1761311173564,500.0,0.00018495,2]
[392287902,1761311174030,500.0,0.00018495,2]
[392287903,1761311189223,500.0,0.00018495,2]
[392287904,1761311189269,500.0,0.00018495,2]
[392287905,1761311189324,500.0,0.00018495,2]
[392287906,1761311189382,198.96871084,0.00018495,2]
[392287907,1761311189851,500.0,0.00018495,2]
[392287908,1761311189906,177.36243955,0.00018495,2]
[392287909,1761311194849,161.0,0.000301,120]
[392287910,1761311203797,162.31258458,0.000301,120]
[392287911,1761311224203,1299.03486403,0.00018396,2]
[392287912,1761311225390,300.0,0.00018495,2]
[392287913,1761311226645,1490.990344,0.00013699,2]
[392287915,1761311246728,558.54362512,0.00018396,2]
[392287916,1761311246751,10000.01,0.00018396,2]